fUST/lending_fUST_20260109
["ID","MTS","AMOUNT","RATE_DAILY","PERIOD"]
[401025169,1767888642595,-1358.36,0.00013698,2]
[401025171,1767888642604,-1358.50047477,0.00013698,2]
[401025173,1767888642614,-500.0,0.00013698,2]
[401025175,1767888642623,-500.0,0.00013698,2]
[401025177,1767888642634,-500.0,0.00013698,2]
[401025179,1767888642643,-500.0,0.00013698,2]
[401025181,1767888642653,-564.27616165,0.00013698,2]
[401025183,1767888642662,-500.0,0.00013698,2]
[401025185,1767888642672,-417.40500511,0.00013698,2]
[401025187,1767888642681,-500.0,0.00013698,2]
[401025189,1767888642691,-500.0,0.00013698,2]
[401025191,1767888642701,-552.51757944,0.00013698,2]
[401025193,1767888642710,-500.0,0.00013698,2]
[401025195,1767888642721,-500.0,0.00013698,2]
[401025197,1767888642731,-500.0,0.00013698,2]
[401025199,1767888642740,-500.0,0.00013698,2]
[401025201,1767888642750,-500.0,0.00013698,2]
[401025202,1767888642760,-500.0,0.00013698,2]
[401025205,1767888642770,-183.29577102,0.00013698,2]
[401025206,1767888642781,-2592.58,0.00013698,2]
[401025208,1767888642791,-2592.58,0.00013698,2]
[401025210,1767888642800,-2592.58,0.00013698,2]
[401025212,1767888642810,-2592.58,0.00013698,2]
[401025214,1767888642820,-2592.58,0.00013698,2]
[401025216,1767888642829,-2592.58,0.00013698,2]
[401025218,1767888642838,-2592.58,0.00013698,2]
[401025220,1767888642848,-2592.58,0.00013698,2]
[401025222,1767888642857,-2592.58,0.00013698,2]
[401025224,1767888642867,-2592.58,0.00013698,2]
[401025226,1767888642877,-2592.58,0.00013698,2]
[401025228,1767888642887,-2592.58,0.00013698,2]
[401025230,1767888642896,-2592.58,0.00013698,2]
[401025232,1767888642905,-2592.58,0.00013698,2]
[401025234,1767888642915,-2592.58,0.00013698,2]
[401025236,1767888642924,-2592.58,0.00013698,2]
[401025238,1767888642934,-2592.58,0.00013698,2]
[401025240,1767888642944,-2592.58,0.00013698,2]
[401025242,1767888642953,-2592.58,0.00013698,2]
[401025244,1767888642963,-2592.58,0.00013698,2]
[401025246,1767888642972,-2592.58,0.00013698,2]
[401025247,1767888642982,-2592.58,0.00013698,2]
[401025249,1767888642991,-2592.58,0.00013698,2]
[401025251,1767888643000,-2592.7833396,0.00013698,2]
[401025253,1767888643010,-500.0,0.00013698,2]
[401025255,1767888643019,-524.43930291,0.00013698,2]
[401025257,1767888643029,-500.0,0.00013698,2]
[401025259,1767888643038,-500.0,0.00013698,2]
[401025261,1767888643047,-245.21192349,0.00013698,2]
[401025263,1767888643056,-61394.0880376,0.00013699,2]
[401025265,1767888643066,-6016.0240641,0.00013699,2]
[401025267,1767888643075,-500.0,0.00013699,2]
[401025269,1767888643085,-500.0,0.00013699,2]
[401025271,1767888643095,-500.0,0.00013699,2]
[401025273,1767888643104,-500.0,0.00013699,2]
[401025275,1767888643114,-500.0,0.00013699,2]
[401025277,1767888643124,-159.90338543,0.00013699,2]
[401025279,1767888643135,-500.0,0.00013699,2]
[401025281,1767888643145,-346.80702233,0.00013699,2]
[401025283,1767888643154,-500.0,0.00013699,2]
[401025285,1767888643163,-500.0,0.00013699,2]
[401025287,1767888643173,-500.0,0.00013699,2]
[401025289,1767888643182,-500.0,0.00013699,2]
[401025291,1767888643191,-500.0,0.00013699,2]
[401025293,1767888643200,-525.286019,0.00013699,2]
[401025295,1767888643209,-243.13183042,0.00013699,2]
[401025297,1767888643218,-500.0,0.00013699,2]
[401025299,1767888643228,-304.24162733,0.00013699,2]
[401025301,1767888643237,-500.0,0.00013699,2]
[401025302,1767888643246,-500.0,0.00013699,2]
[401025304,1767888643256,-500.0,0.00013699,2]
[401025306,1767888643265,-500.0,0.00013699,2]
[401025308,1767888643275,-500.0,0.00013699,2]
[401025310,1767888643284,-500.0,0.00013699,2]
[401025312,1767888643293,-500.0,0.00013699,2]
[401025314,1767888643301,-500.0,0.00013699,2]
[401025316,1767888643311,-500.0,0.00013699,2]
[401025318,1767888643325,-500.0,0.00013699,2]
[401025320,1767888643334,-158.2,0.00013699,2]
[401025322,1767888643343,-500.0,0.00013699,2]
[401025324,1767888643353,-500.0,0.00013699,2]
[401025326,1767888643363,-500.0,0.00013699,2]
[401025328,1767888643372,-500.0,0.00013699,2]
[401025330,1767888643382,-159.84215086,0.00013699,2]
[401025332,1767888643392,-500.0,0.00013699,2]
[401025334,1767888643401,-500.0,0.00013699,2]
[401025336,1767888643410,-500.0,0.00013699,2]
[401025338,1767888643421,-500.0,0.00013699,2]
[401025340,1767888643430,-500.0,0.00013699,2]
[401025342,1767888643440,-500.0,0.00013699,2]
[401025344,1767888643449,-500.0,0.00013699,2]
[401025346,1767888643458,-587.90016754,0.00013699,2]
[401025348,1767888643468,-500.0,0.00013699,2]
[401025350,1767888643478,-500.0,0.00013699,2]
[401025352,1767888643488,-500.0,0.00013699,2]
[401025354,1767888643498,-417.18064855,0.00013699,2]
[401025356,1767888643508,-500.0,0.00013699,2]
[401025358,1767888643518,-160.31511176,0.00013699,2]
[401025360,1767888643527,-500.0,0.00013699,2]
[401025362,1767888643537,-500.0,0.00013699,2]
[401025364,1767888643546,-500.0,0.00013699,2]
[401025366,1767888643555,-500.0,0.00013699,2]
[401025368,1767888643564,-500.0,0.00013699,2]
[401025370,1767888643573,-500.0,0.00013699,2]
[401025372,1767888643582,-500.0,0.00013699,2]
[401025374,1767888643592,-500.0,0.00013699,2]
[401025376,1767888643601,-500.0,0.00013699,2]
[401025378,1767888643610,-500.0,0.00013699,2]
[401025380,1767888643621,-500.0,0.00013699,2]
[401025382,1767888643630,-500.0,0.00013699,2]
[401025384,1767888643640,-500.0,0.00013699,2]
[401025386,1767888643649,-500.0,0.00013699,2]
[401025403,1767888643816,-500.0,0.00013699,2]
[401025405,1767888643828,-500.0,0.00013699,2]
[401025407,1767888643838,-500.0,0.00013699,2]
[401025409,1767888643848,-500.0,0.00013699,2]
[401025411,1767888643857,-500.0,0.00013699,2]
[401025413,1767888643868,-163.82427234,0.00013699,2]
[401025415,1767888643877,-165.20381649,0.00013699,2]
[401025417,1767888643887,-158.54413521,0.00013699,2]
[401025419,1767888643896,-500.0,0.00013699,2]
[401025422,1767888643907,-500.0,0.00013699,2]
[401025424,1767888643917,-500.0,0.00013699,2]
[401025425,1767888643927,-158.26651658,0.00013699,2]
[401025428,1767888643937,-500.0,0.00013699,2]
[401025430,1767888643947,-500.0,0.00013699,2]
[401025433,1767888643957,-500.0,0.00013699,2]
[401025436,1767888643968,-500.0,0.00013699,2]
[401025438,1767888643978,-500.0,0.00013699,2]
[401025441,1767888643988,-500.0,0.00013699,2]
[401025442,1767888643998,-500.0,0.00013699,2]
[401025445,1767888644008,-500.0,0.00013699,2]
[401025446,1767888644018,-500.97859119,0.00013699,2]
[401025448,1767888644028,-500.0,0.00013699,2]
[401025450,1767888644038,-500.25512227,0.00013699,2]
[401025452,1767888644048,-500.0,0.00013699,2]
[401025455,1767888644057,-500.0,0.00013699,2]
[401025459,1767888644067,-500.0,0.00013699,2]
[401025461,1767888644077,-500.0,0.00013699,2]
[401025462,1767888644087,-500.0,0.00013699,2]
[401025465,1767888644097,-307.90182958,0.00013699,2]
[401025467,1767888644107,-500.0,0.00013699,2]
[401025469,1767888644117,-535.32110094,0.00013699,2]
[401025471,1767888644128,-340.41437066,0.00013699,2]
[401025472,1767888644138,-500.0,0.00013699,2]
[401025475,1767888644148,-525.26239799,0.00013699,2]
[401025477,1767888644158,-500.0,0.00013699,2]
[401025479,1767888644168,-500.0,0.00013699,2]
[401025481,1767888644178,-500.0,0.00013699,2]
[401025483,1767888644187,-1000.0,0.00013821,2]
[401025485,1767888644196,-500.0,0.00013821,2]
[401025487,1767888644206,-999.45845722,0.00013821,2]
[401025489,1767888644217,-1000.0,0.00013821,2]
[401025491,1767888644227,-1000.0,0.00013821,2]
[401025493,1767888644237,-1000.0,0.00013821,2]
[401025495,1767888644247,-1000.0,0.00013821,2]
[401025497,1767888644257,-1147.44937683,0.00013821,2]
[401025499,1767888644267,-1000.0,0.00013821,2]
[401025501,1767888644277,-997.24206877,0.00013821,2]
[401025503,1767888644287,-1000.0,0.00013821,2]
[401025505,1767888644296,-1000.0,0.00013821,2]
[401025507,1767888644306,-1000.0,0.00013821,2]
[401025509,1767888644319,-1000.0,0.00013821,2]
[401025511,1767888644330,-1000.0,0.00013821,2]
[401025513,1767888644340,-1000.0,0.00013821,2]
[401025515,1767888644351,-1000.0,0.00013821,2]
[401025517,1767888644362,-1000.0,0.00013821,2]
[401025519,1767888644372,-1000.0,0.00013821,2]
[401025521,1767888644381,-1000.0,0.00013821,2]
[401025523,1767888644392,-1000.0,0.00013821,2]
[401025525,1767888644402,-1000.0,0.00013821,2]
[401025527,1767888644411,-1000.0,0.00013821,2]
[401025529,1767888644421,-899.90959065,0.00013821,2]
[401025531,1767888644431,-1000.0,0.00013821,2]
[401025533,1767888644441,-1000.0,0.00013821,2]
[401025535,1767888644451,-1000.0,0.00013821,2]
[401025537,1767888644461,-1000.0,0.00013821,2]
[401025539,1767888644473,-1000.0,0.00013821,2]
[401025541,1767888644483,-1000.0,0.00013821,2]
[401025543,1767888644492,-453.31002908,0.00013821,2]
[401025545,1767888644501,-1000.0,0.00013821,2]
[401025547,1767888644511,-1001.21467235,0.00013821,2]
[401025549,1767888644520,-1000.0,0.00013821,2]
[401025551,1767888644529,-1000.0,0.00013821,2]
[401025553,1767888644538,-1000.0,0.00013821,2]
[401025555,1767888644548,-501.77913304,0.00013821,2]
[401025557,1767888644557,-501.96575102,0.00013821,2]
[401025559,1767888644567,-1000.0,0.00013821,2]
[401025561,1767888644576,-1000.0,0.00013821,2]
[401025563,1767888644586,-1000.0,0.00013821,2]
[401025565,1767888644596,-1000.0,0.00013821,2]
[401025567,1767888644605,-5000.0,0.0001386,2]
[401025569,1767888644615,-1000.0,0.00014,2]
[401025571,1767888644624,-4592.0276856,0.00014003,2]
[401025573,1767888644634,-1152.0,0.00014019,2]
[401025575,1767888644644,-4609.0,0.00014021,2]
[401025577,1767888644653,-600.0,0.00014221,2]
[401025579,1767888644663,-1004.856401,0.00014247,2]
[401025581,1767888644672,-1000.0,0.00014247,2]
[401025583,1767888644682,-500.0,0.00014247,2]
[401025584,1767888644691,-988.64589349,0.00014247,2]
[401025586,1767888644700,-1000.0,0.00014247,2]
[401025588,1767888644710,-1000.0,0.00014247,2]
[401025591,1767888644721,-1000.0,0.00014247,2]
[401025592,1767888644731,-1000.0,0.00014247,2]
[401025595,1767888644741,-1000.0,0.00014247,2]
[401025596,1767888644751,-752.51325936,0.00014247,2]
[401025599,1767888644761,-913.35141242,0.00014247,2]
[401025600,1767888644771,-689.99222472,0.00014247,2]
[401025602,1767888644781,-1000.0,0.00014247,2]
[401025605,1767888644791,-1000.0,0.00014247,2]
[401025606,1767888644801,-1000.0,0.00014247,2]
[401025608,1767888644810,-1000.0,0.00014247,2]
[401025610,1767888644820,-1000.0,0.00014247,2]
[401025612,1767888644830,-1000.0,0.00014247,2]
[401025614,1767888644839,-1000.0,0.00014247,2]
[401025616,1767888644849,-1004.01306288,0.00014247,2]
[401025619,1767888644859,-250.0,0.00014247,2]
[401025620,1767888644869,-1000.0,0.00014247,2]
[401025622,1767888644879,-1000.0,0.00014247,2]
[401025624,1767888644889,-610.31065516,0.00014247,2]
[401025626,1767888644898,-1000.0,0.00014247,2]
[401025628,1767888644907,-1000.0,0.00014247,2]
[401025630,1767888644918,-434.10134692,0.00014247,2]
[401025632,1767888644927,-1000.0,0.00014247,2]
[401025634,1767888644937,-1000.0,0.00014247,2]
[401025636,1767888644947,-1000.0,0.00014247,2]
[401025639,1767888644956,-1000.0,0.00014247,2]
[401025640,1767888644967,-1000.0,0.00014247,2]
[401025642,1767888644977,-1000.0,0.00014247,2]
[401025644,1767888644986,-298.48218787,0.00014247,2]
[401025646,1767888644996,-1000.0,0.00014247,2]
[401025648,1767888645006,-1000.0,0.00014247,2]
[401025650,1767888645015,-1000.0,0.00014247,2]
[401025652,1767888645024,-1111.568419,0.00014247,2]
[401025654,1767888645034,-1000.0,0.00014247,2]
[401025656,1767888645045,-1000.0,0.00014247,2]
[401025658,1767888645054,-1000.0,0.00014247,2]
[401025660,1767888645064,-1000.0,0.00014247,2]
[401025662,1767888645073,-1000.0,0.00014247,2]
[401025664,1767888645083,-1000.0,0.00014247,2]
[401025666,1767888645092,-502.343773,0.00014247,2]
[401025668,1767888645102,-1000.0,0.00014247,2]
[401025670,1767888645111,-1000.0,0.00014247,2]
[401025672,1767888645120,-1000.0,0.00014247,2]
[401025673,1767888645130,-1000.0,0.00014247,2]
[401025674,1767888645139,-1000.0,0.00014247,2]
[401025675,1767888645148,-1000.0,0.00014247,2]
[401025676,1767888645159,-1000.0,0.00014247,2]
[401025677,1767888645168,-1000.0,0.00014247,2]
[401025678,1767888645177,-441.63993024,0.00014247,2]
[401025679,1767888645187,-252.61198988,0.00014247,2]
[401025680,1767888645196,-1000.0,0.00014247,2]
[401025681,1767888645205,-1000.0,0.00014247,2]
[401025682,1767888645214,-1000.0,0.00014247,2]
[401025683,1767888645224,-1000.0,0.00014247,2]
[401025684,1767888645233,-1000.0,0.00014247,2]
[401025685,1767888645242,-956.27081693,0.00014247,2]
[401025686,1767888645251,-310.37151762,0.00014247,2]
[401025687,1767888645261,-1000.0,0.00014247,2]
[401025688,1767888645271,-1001.13148191,0.00014247,2]
[401025689,1767888645280,-1000.61530681,0.00014247,2]
[401025690,1767888645289,-1000.0,0.00014247,2]
[401025691,1767888645298,-1001.43129902,0.00014247,2]
[401025692,1767888645307,-366.95119537,0.00014247,2]
[401025693,1767888645319,-1000.0,0.00014247,2]
[401025694,1767888645328,-1000.0,0.00014247,2]
[401025695,1767888645338,-1000.0,0.00014247,2]
[401025696,1767888645347,-1000.0,0.00014247,2]
[401025697,1767888645357,-1000.0,0.00014247,2]
[401025698,1767888645368,-295.77275055,0.00014247,2]
[401025699,1767888645377,-268.00171243,0.00014247,2]
[401025700,1767888645389,-501.14993942,0.00014247,2]
[401025702,1767888645398,-1000.0,0.00014247,2]
[401025704,1767888645408,-1000.0,0.00014247,2]
[401025706,1767888645418,-443.55206413,0.00014247,2]
[401025708,1767888645427,-485.49285484,0.00014368,2]
[401025710,1767888645437,-1500.0,0.00014368,2]
[401025712,1767888645448,-1500.0,0.00014368,2]
[401025714,1767888645459,-1500.0,0.00014368,2]
[401025716,1767888645468,-1500.0,0.00014368,2]
[401025718,1767888645479,-1048.33168452,0.00014368,2]
[401025721,1767888645488,-1500.0,0.00014368,2]
[401025723,1767888645498,-1500.0,0.00014368,2]
[401025725,1767888645507,-1500.0,0.00014368,2]
[401025727,1767888645517,-1500.0,0.00014368,2]
[401025729,1767888645526,-1500.0,0.00014368,2]
[401025731,1767888645536,-1500.0,0.00014368,2]
[401025733,1767888645545,-1214.3329737,0.00014368,2]
[401025735,1767888645555,-759.53509547,0.00014368,2]
[401025737,1767888645565,-1500.0,0.00014368,2]
[401025739,1767888645575,-1500.0,0.00014368,2]
[401025741,1767888645585,-1500.0,0.00014368,2]
[401025743,1767888645594,-1500.0,0.00014368,2]
[401025745,1767888645604,-1500.0,0.00014368,2]
[401025747,1767888645613,-1613.91769968,0.00014368,2]
[401025749,1767888645623,-466.57115402,0.00014368,2]
[401025751,1767888645632,-1500.0,0.00014368,2]
[401025753,1767888645642,-1223.48736773,0.00014368,2]
[401025755,1767888645652,-1167.28581766,0.00014368,2]
[401025757,1767888645661,-1500.0,0.00014368,2]
[401025759,1767888645671,-973.2526551,0.00014368,2]
[401025761,1767888645680,-400.46467622,0.00014368,2]
[401025763,1767888645690,-1500.0,0.00014368,2]
[401025765,1767888645700,-1500.0,0.00014368,2]
[401025767,1767888645711,-1500.0,0.00014368,2]
[401025769,1767888645721,-1500.0,0.00014368,2]
[401025771,1767888645731,-1500.0,0.00014368,2]
[401025773,1767888645741,-1500.0,0.00014368,2]
[401025775,1767888645751,-1000.0,0.00014444,2]
[401025777,1767888645762,-244.0,0.00014444,2]
[401025779,1767888645772,-900.0,0.00014768,2]
[401025781,1767888645781,-1409.51288327,0.00014795,2]
[401025783,1767888645791,-1512.47982186,0.00014795,2]
[401025785,1767888645800,-928.80611253,0.00014795,2]
[401025787,1767888645810,-1500.0,0.00014795,2]
[401025789,1767888645819,-1500.0,0.00014795,2]
[401025791,1767888645830,-158.42695307,0.00014795,2]
[401025793,1767888645840,-1500.0,0.00014795,2]
[401025795,1767888645851,-580.84036522,0.00014795,2]
[401025796,1767888645860,-1500.0,0.00014795,2]
[401025798,1767888645870,-1500.0,0.00014795,2]
[401025800,1767888645879,-170.616861,0.00014795,2]
[401025802,1767888645888,-852.55903874,0.00014795,2]
[401025804,1767888645897,-350.0,0.00014795,2]
[401025806,1767888645907,-1500.0,0.00014795,2]
[401025808,1767888645917,-1500.0,0.00014795,2]
[401025810,1767888645927,-1500.0,0.00014795,2]
[401025812,1767888645937,-1500.0,0.00014795,2]
[401025814,1767888645946,-192.36614921,0.00014795,2]
[401025816,1767888645956,-1500.0,0.00014795,2]
[401025818,1767888645966,-1500.0,0.00014795,2]
[401025820,1767888645976,-1500.0,0.00014795,2]
[401025822,1767888645986,-1500.0,0.00014795,2]
[401025824,1767888645996,-1000.67633163,0.00014795,2]
[401025826,1767888646006,-1500.0,0.00014795,2]
[401025828,1767888646016,-1500.0,0.00014795,2]
[401025830,1767888646025,-1000.89449445,0.00014795,2]
[401025832,1767888646035,-1500.0,0.00014795,2]
[401025834,1767888646044,-660.22279382,0.00014795,2]
[401025836,1767888646055,-1469.53593685,0.00014795,2]
[401025838,1767888646064,-1000.94389951,0.00014795,2]
[401025840,1767888646074,-1500.0,0.00014795,2]
[401025842,1767888646083,-1000.57472158,0.00014795,2]
[401025844,1767888646092,-1500.0,0.00014795,2]
[401025846,1767888646101,-1500.0,0.00014795,2]
[401025848,1767888646111,-1500.0,0.00014795,2]
[401025850,1767888646121,-1500.0,0.00014795,2]
[401025852,1767888646130,-1500.0,0.00014795,2]
[401025854,1767888646140,-1500.0,0.00014795,2]
[401025856,1767888646149,-1500.0,0.00014795,2]
[401025857,1767888646159,-1500.0,0.00014795,2]
[401025859,1767888646168,-1018.32057392,0.00014795,2]
[401025861,1767888646178,-1500.0,0.00014795,2]
[401025863,1767888646187,-1500.0,0.00014795,2]
[401025870,1767888646197,-607.41040289,0.00014795,2]
[401025872,1767888646250,-1500.0,0.00014795,2]
[401025873,1767888646259,-1500.0,0.00014795,2]
[401025875,1767888646269,-1500.0,0.00014795,2]
[401025877,1767888646278,-1146.05055977,0.00014795,2]
[401025879,1767888646288,-1500.0,0.00014795,2]
[401025881,1767888646297,-1500.0,0.00014795,2]
[401025883,1767888646306,-1428.52044379,0.00014916,2]
[401025885,1767888646318,-2000.0,0.00014916,2]
[401025887,1767888646327,-862.97380774,0.00014916,2]
[401025889,1767888646337,-2000.0,0.00014916,2]
[401025891,1767888646346,-2005.03243245,0.00014916,2]
[401025893,1767888646355,-2000.0,0.00014916,2]
[401025895,1767888646365,-651.97322479,0.00014916,2]
[401025897,1767888646374,-2000.0,0.00014916,2]
[401025899,1767888646383,-2000.0,0.00014916,2]
[401025901,1767888646394,-2000.0,0.00014916,2]
[401025903,1767888646405,-1512.87309708,0.00014916,2]
[401025905,1767888646416,-1087.39827897,0.00014916,2]
[401025906,1767888646426,-2000.0,0.00014916,2]
[401025908,1767888646436,-2000.0,0.00014916,2]
[401025910,1767888646445,-2000.0,0.00014916,2]
[401025912,1767888646455,-1526.2364852,0.00014916,2]
[401025914,1767888646464,-500.98834763,0.00014916,2]
[401025916,1767888646473,-2000.0,0.00014916,2]
[401025918,1767888646482,-610.58225543,0.00014916,2]
[401025920,1767888646491,-2000.0,0.00014916,2]
[401025922,1767888646500,-1783.80150252,0.00014916,2]
[401025923,1767888646509,-2000.0,0.00014916,2]
[401025924,1767888646519,-1000.0,0.00015,2]
[401025925,1767888646528,-100000.0,0.00015028,2]
[401025926,1767888646537,-800.0,0.00015068,2]
[401025927,1767888646546,-1200.0,0.00015316,2]
[401025929,1767888646556,-2000.0,0.00015342,2]
[401025930,1767888646565,-2000.0,0.00015342,2]
[401025931,1767888646574,-171.82162916,0.00015342,2]
[401025932,1767888646583,-2093.29611756,0.00015342,2]
[401025933,1767888646593,-154.23632713,0.00015342,2]
[401025934,1767888646603,-542.93732994,0.00015342,2]
[401025935,1767888646612,-2000.0,0.00015342,2]
[401025936,1767888646621,-503.14554213,0.00015342,2]
[401025937,1767888646630,-502.35954756,0.00015342,2]
[401025938,1767888646640,-1640.67728986,0.00015342,2]
[401025939,1767888646649,-2000.0,0.00015342,2]
[401025940,1767888646659,-500.68920715,0.00015342,2]
[401025941,1767888646668,-229.54123182,0.00015342,2]
[401025942,1767888646677,-528.42001523,0.00015342,2]
[401025943,1767888646687,-1474.34002557,0.00015342,2]
[401025944,1767888646697,-2000.0,0.00015342,2]
[401025945,1767888646707,-602.53259662,0.00015342,2]
[401025946,1767888646717,-2000.0,0.00015342,2]
[401025947,1767888646726,-1786.81506182,0.00015342,2]
[401025948,1767888646735,-921.00515568,0.00015342,2]
[401025949,1767888646745,-2000.0,0.00015342,2]
[401025950,1767888646755,-2000.0,0.00015342,2]
[401025951,1767888646765,-2004.51727604,0.00015342,2]
[401025952,1767888646775,-2000.0,0.00015342,2]
[401025953,1767888646784,-619.88473834,0.00015342,2]
[401025954,1767888646794,-1836.65947318,0.00015342,2]
[401025955,1767888646804,-500.76011771,0.00015342,2]
[401025956,1767888646814,-2000.0,0.00015342,2]
[401025957,1767888646824,-1506.84567032,0.00015342,2]
[401025958,1767888646833,-2003.80919542,0.00015342,2]
[401025959,1767888646843,-1482.84709438,0.00015342,2]
[401025960,1767888646853,-1108.00999349,0.00015342,2]
[401025961,1767888646863,-1700.34918809,0.00015342,2]
[401025962,1767888646872,-1613.0,0.00015421,2]
[401025963,1767888646882,-6453.0,0.00015423,2]
[401025964,1767888646892,-2500.0,0.00015464,2]
[401025965,1767888646902,-2500.0,0.00015464,2]
[401025966,1767888646912,-2504.42880748,0.00015464,2]
[401025967,1767888646922,-954.68786097,0.00015464,2]
[401025968,1767888646932,-1869.5151472,0.00015464,2]
[401025969,1767888646941,-2500.0,0.00015464,2]
[401025970,1767888646951,-509.18344353,0.00015464,2]
[401025971,1767888646960,-1639.84450698,0.00015464,2]
[401025972,1767888646971,-2500.0,0.00015464,2]
[401025973,1767888646981,-2500.0,0.00015464,2]
[401025974,1767888646990,-2500.0,0.00015464,2]
[401025976,1767888647000,-2500.0,0.00015464,2]
[401025977,1767888647010,-865.69409043,0.00015578,2]
[401025979,1767888647019,-1500.0,0.00015864,2]
[401025980,1767888647029,-1000.0,0.00015888,2]
[401025981,1767888647039,-492.0,0.00015888,2]
[401025982,1767888647049,-2500.0,0.0001589,2]
[401025983,1767888647058,-637.24204092,0.0001589,2]
[401025984,1767888647068,-2085.25162873,0.0001589,2]
[401025985,1767888647077,-2500.0,0.0001589,2]
[401025986,1767888647087,-806.08350936,0.0001589,2]
[401025987,1767888647098,-2046.66896035,0.0001589,2]
[401025988,1767888647107,-1634.65901332,0.0001589,2]
[401025989,1767888647117,-2500.0,0.0001589,2]
[401025990,1767888647127,-2500.0,0.0001589,2]
[401025991,1767888647136,-2500.0,0.0001589,2]
[401025992,1767888647145,-171.0,0.000159,2]
[401025993,1767888647155,-2504.86113251,0.00016012,2]
[401025994,1767888647165,-3000.0,0.00016012,2]
[401025995,1767888647174,-1004.42929378,0.00016012,2]
[401025996,1767888647183,-2002.92123591,0.00016012,2]
[401025997,1767888647193,-3000.0,0.00016012,2]
[401025998,1767888647202,-3000.0,0.00016012,2]
[401025999,1767888647212,-3000.0,0.00016012,2]
[401026001,1767888647222,-1600.0,0.00016164,2]
[401026003,1767888647232,-5403.18556089,0.00016241,2]
[401026005,1767888647242,-1800.0,0.00016412,2]
[401026007,1767888647250,-154.86011847,0.00016438,2]
[401026008,1767888647260,-164.10892372,0.00016438,2]
[401026009,1767888647270,-836.19225806,0.00016438,2]
[401026010,1767888647279,-1508.06432124,0.00016438,2]
[401026011,1767888647289,-3000.0,0.00016438,2]
[401026012,1767888647298,-3000.0,0.00016438,2]
[401026013,1767888647307,-3000.0,0.00016438,2]
[401026014,1767888647318,-260.00260822,0.00016438,2]
[401026015,1767888647328,-200.0,0.00016473,2]
[401026016,1767888647338,-3500.0,0.0001656,2]
[401026017,1767888647347,-896.00511375,0.0001656,2]
[401026018,1767888647357,-3500.0,0.0001656,2]
[401026019,1767888647366,-3500.0,0.0001656,2]
[401026020,1767888647376,-5000.0,0.00016632,2]
[401026021,1767888647385,-2100.0,0.0001696,2]
[401026022,1767888647396,-2258.0,0.00016963,2]
[401026023,1767888647405,-9035.0,0.00016965,2]
[401026024,1767888647415,-3500.0,0.00016986,2]
[401026025,1767888647425,-3500.0,0.00016986,2]
[401026026,1767888647434,-3500.0,0.00016986,2]
[401026027,1767888647443,-3476.38081515,0.00017108,2]
[401026028,1767888647453,-4000.0,0.00017108,2]
[401026029,1767888647462,-509.97635533,0.00017108,2]
[401026030,1767888647471,-2400.0,0.0001726,2]
[401026031,1767888647481,-1000.0,0.00017477,2]
[401026032,1767888647491,-791.0,0.00017477,2]
[401026033,1767888647501,-2400.0,0.00017508,2]
[401026034,1767888647510,-4000.0,0.00017534,2]
[401026035,1767888647520,-4000.0,0.00017534,2]
[401026036,1767888647530,-4000.0,0.00017534,2]
[401026037,1767888647539,-966.87911399,0.00017578,2]
[401026038,1767888647548,-394.94,0.000176,2]
[401026039,1767888647558,-4500.0,0.00017656,2]
[401026040,1767888647568,-479.78804727,0.00017842,2]
[401026041,1767888647577,-5000.0,0.00018018,2]
[401026042,1767888647587,-1507.44944301,0.00018056,2]
[401026043,1767888647596,-4500.0,0.00018082,2]
[401026044,1767888647606,-4500.0,0.00018082,2]
[401026045,1767888647615,-4500.0,0.00018082,2]
[401026046,1767888647625,-71428.6,0.00018082,3]
[401026047,1767888647634,-5000.0,0.00018204,2]